fUST/lending_fUST_20241101
["ID","MTS","AMOUNT","RATE_DAILY","PERIOD"]
[341119887,1730406644096,-2508.56,0.00035616,120]
[341119888,1730406644106,-2508.56,0.00035616,120]
[341119889,1730406644115,-2508.56,0.00035616,120]
[341119890,1730406644125,-2508.56,0.00035616,120]
[341119891,1730406644135,-2508.56,0.00035616,120]
[341119892,1730406644144,-2508.56,0.00035616,120]
[341119893,1730406644154,-2508.56,0.00035616,120]
[341119894,1730406644164,-2508.56,0.00035616,120]
[341119895,1730406644173,-2508.56,0.00035616,120]
[341119896,1730406644183,-2508.56,0.00035616,120]
[341119897,1730406644192,-2508.56,0.00035616,120]
[341119898,1730406644201,-2508.56,0.00035616,120]
[341119899,1730406644210,-2508.56,0.00035616,120]
[341119900,1730406644219,-2508.56,0.00035616,120]
[341119901,1730406644228,-2508.56,0.00035616,120]
[341119902,1730406644238,-2508.56,0.00035616,120]
[341119903,1730406644247,-2508.56,0.00035616,120]
[341119904,1730406644257,-2508.56,0.00035616,120]
[341119905,1730406644266,-151.0,0.00035616,14]
[341119906,1730406644275,-151.0,0.00035616,14]
[341119907,1730406644287,-999.0,0.00035616,120]
[341119908,1730406644296,-1000.0,0.00035616,120]
[341119909,1730406644305,-160.0,0.00035616,5]
[341119910,1730406644315,-500.0,0.00035686,2]
[341119911,1730406644325,-2468.06530122,0.000357,30]
[341119926,1730406646609,-24736.82469878,0.000357,30]
[341119927,1730406646619,-1292.89,0.000357,30]
[341119928,1730406646628,-1163.48,0.000357,30]
[341119929,1730406646638,-168.67,0.000357,30]
[341119930,1730406646648,-234.39,0.000357,30]
[341119931,1730406646657,-151.0,0.000357,14]
[341119932,1730406646667,-151.0,0.000357,14]
[341119933,1730406646677,-151.0,0.000357,14]
[341119934,1730406646686,-151.0,0.000357,14]
[341119935,1730406646696,-151.0,0.000357,14]
[341119936,1730406646706,-151.0,0.000357,14]
[341119937,1730406646716,-295.898781,0.000357,14]
[341119938,1730406646726,-151.0,0.000357,14]
[341119939,1730406646737,-295.898781,0.000357,14]
[341119940,1730406646748,-327.247579,0.000357,14]
[341119941,1730406646759,-327.247579,0.000357,14]
[341119942,1730406646768,-180.8213,0.000357,14]
[341119943,1730406646778,-180.8213,0.000357,14]
[341119944,1730406646789,-151.0,0.000357,14]
[341119945,1730406646799,-151.0,0.000357,14]
[341119946,1730406646808,-151.0,0.000357,14]
[341119947,1730406646818,-151.0,0.000357,14]
[341119948,1730406646828,-258.300136,0.000357,14]
[341119949,1730406646839,-258.300136,0.000357,14]
[341119950,1730406646851,-185.273363,0.000357,14]
[341119951,1730406646860,-185.273363,0.000357,14]
[341119952,1730406646870,-151.0,0.000357,14]
[341119953,1730406646879,-227.017522,0.000357,14]
[341119954,1730406646890,-227.017522,0.000357,14]
[341119955,1730406646899,-151.0,0.000357,2]
[341119956,1730406646909,-152.361355,0.000357,14]
[341119957,1730406646918,-151.0,0.000357,2]
[341119958,1730406646929,-157.42157,0.000357,14]
[341119959,1730406646938,-157.42157,0.000357,14]
[341119960,1730406646948,-151.0,0.000357,14]
[341119961,1730406646957,-151.336337,0.000357,14]
[341119962,1730406646967,-151.0,0.000357,14]
[341119963,1730406646976,-1046.11,0.000357,31]
[341119964,1730406646986,-1046.11,0.000357,31]
[341119965,1730406646995,-1046.11,0.000357,31]
[341119966,1730406647005,-1046.11,0.000357,31]
[341119967,1730406647014,-1046.11,0.000357,31]
[341119968,1730406647023,-1046.11,0.000357,31]
[341119969,1730406647034,-1046.11,0.000357,31]
[341119970,1730406647045,-1046.11,0.000357,31]
[341119971,1730406647054,-1046.11,0.000357,31]
[341119972,1730406647064,-1046.11,0.000357,31]
[341119973,1730406647073,-1046.11,0.000357,31]
[341119974,1730406647082,-1046.11,0.000357,31]
[341119975,1730406647092,-1046.11,0.000357,31]
[341119976,1730406647101,-1046.11,0.000357,31]
[341119977,1730406647113,-1046.11,0.000357,31]
[341119978,1730406647122,-1046.11,0.000357,31]
[341119979,1730406647132,-1046.11,0.000357,31]
[341119980,1730406647142,-1046.11,0.000357,31]
[341119981,1730406647152,-1046.11,0.000357,31]
[341119982,1730406647161,-1046.11,0.000357,31]
[341119983,1730406647171,-1046.11,0.000357,31]
[341119984,1730406647181,-1046.11,0.000357,31]
[341119985,1730406647190,-1046.11,0.000357,31]
[341119986,1730406647203,-1046.11,0.000357,31]
[341119987,1730406647215,-151.0,0.000357,14]
[341119988,1730406647226,-151.0,0.000357,14]
[341119989,1730406647237,-151.0,0.000357,5]
[341119990,1730406647248,-151.0,0.000357,14]
[341119991,1730406647257,-151.0,0.000357,14]
[341119992,1730406647267,-151.0,0.000357,5]
[341119993,1730406647276,-151.0,0.000357,14]
[341119994,1730406647287,-151.0,0.000357,14]
[341119995,1730406647296,-1069.666247,0.000357,14]
[341119996,1730406647306,-1069.666247,0.000357,14]
[341119997,1730406647317,-151.0,0.000357,14]
[341119998,1730406647327,-151.0,0.000357,14]
[341119999,1730406647337,-734.950032,0.000357,14]
[341120000,1730406647347,-734.950032,0.000357,14]
[341120001,1730406647358,-188.494296,0.000357,14]
[341120002,1730406647368,-188.494296,0.000357,14]
[341120003,1730406647377,-216.661834,0.000357,14]
[341120004,1730406647386,-216.661834,0.000357,14]
[341120005,1730406647396,-1000.0,0.00035751,2]
[341120006,1730406647405,-5000.0,0.00035752,30]
[341120007,1730406647415,-1000.0,0.000358,6]
[341120008,1730406647425,-2508.56,0.0003581,120]
[341120009,1730406647435,-500.0,0.00035864,3]
[341120010,1730406647445,-151.0,0.00035864,14]
[341120011,1730406647454,-285.793444,0.00035864,14]
[341120012,1730406647464,-1000.0,0.0003589,120]
[341120013,1730406647474,-300.0,0.000359,18]
[341120014,1730406647483,-495.23370282,0.000359,2]
[341120015,1730406647492,-12237.22705825,0.00035982,2]
[341120016,1730406647502,-16111.40483133,0.00035988,2]
[341120017,1730406647511,-151.0,0.00035988,14]
[341120018,1730406647521,-151.0,0.00035988,14]
[341120019,1730406647531,-151.0,0.00035988,14]
[341120020,1730406647545,-295.898781,0.00035988,14]
[341120021,1730406647557,-274.850676,0.00035988,14]
[341120022,1730406647566,-295.898781,0.00035988,14]
[341120023,1730406647577,-327.247579,0.00035988,14]
[341120024,1730406647588,-327.247579,0.00035988,14]
[341120025,1730406647597,-238.34804,0.00035988,14]
[341120026,1730406647607,-180.8213,0.00035988,14]
[341120027,1730406647618,-180.8213,0.00035988,14]
[341120028,1730406647627,-151.0,0.00035988,14]
[341120029,1730406647638,-151.0,0.00035988,14]
[341120030,1730406647647,-151.0,0.00035988,14]
[341120031,1730406647658,-151.0,0.00035988,14]
[341120032,1730406647669,-185.273363,0.00035988,14]
[341120033,1730406647679,-185.273363,0.00035988,14]
[341120034,1730406647690,-160.0,0.00036,120]
[341120035,1730406647700,-150.06722,0.00036,2]
[341120036,1730406647709,-24660.36900258,0.00036,30]
[341120037,1730406647719,-151.0,0.00036,14]
[341120038,1730406647730,-151.0,0.00036,14]
[341120039,1730406647739,-258.300136,0.00036,14]
[341120040,1730406647750,-258.300136,0.00036,14]
[341120041,1730406647760,-151.0,0.00036,14]
[341120042,1730406647770,-227.017522,0.00036,14]
[341120043,1730406647779,-227.017522,0.00036,14]
[341120044,1730406647790,-151.0,0.00036,2]
[341120045,1730406647799,-151.0,0.00036,2]
[341120046,1730406647810,-157.42157,0.00036,14]
[341120047,1730406647819,-157.42157,0.00036,14]
[341120048,1730406647830,-151.0,0.00036,14]
[341120049,1730406647840,-151.0,0.00036,14]
[341120050,1730406647851,-151.0,0.00036,14]
[341120051,1730406647860,-151.0,0.00036,14]
[341120052,1730406647869,-151.0,0.00036,5]
[341120053,1730406647879,-151.0,0.00036,14]
[341120054,1730406647888,-151.0,0.00036,14]
[341120055,1730406647897,-172.695368,0.00036,5]
[341120056,1730406647906,-151.0,0.00036,14]
[341120057,1730406647917,-151.0,0.00036,14]
[341120058,1730406647926,-1069.666247,0.00036,14]
[341120059,1730406647935,-1069.666247,0.00036,14]
[341120060,1730406647946,-151.0,0.00036,14]
[341120061,1730406647956,-151.0,0.00036,14]
[341120062,1730406647965,-734.950032,0.00036,14]
[341120063,1730406647975,-734.950032,0.00036,14]
[341120064,1730406647984,-188.494296,0.00036,14]
[341120065,1730406647994,-188.494296,0.00036,14]
[341120066,1730406648003,-216.661834,0.00036,14]
[341120067,1730406648013,-216.661834,0.00036,14]
[341120068,1730406648023,-167.574,0.00036027,120]
[341120069,1730406648033,-2508.56,0.00036084,120]
[341120070,1730406648042,-3997.41,0.00036113,30]
[341120071,1730406648051,-151.0,0.0003614,14]
[341120072,1730406648061,-151.0,0.00036164,14]
[341120073,1730406648070,-1000.0,0.00036164,120]
[341120074,1730406648079,-200.05926916,0.0003621,2]
[341120075,1730406648089,-260.18499552,0.0003624,2]
[341120076,1730406648099,-2508.56,0.00036358,120]
[341120077,1730406648108,-495.23370282,0.000364,2]
[341120078,1730406648118,-1000.0,0.00036438,120]
[341120079,1730406648127,-5786.13973989,0.000365,20]
[341120080,1730406648138,-151.0,0.000365,14]
[341120081,1730406648148,-151.0,0.000365,14]
[341120082,1730406648157,-151.0,0.000365,14]
[341120083,1730406648167,-295.898781,0.000365,14]
[341120084,1730406648176,-295.898781,0.000365,14]
[341120085,1730406648185,-327.247579,0.000365,14]
[341120086,1730406648194,-327.247579,0.000365,14]
[341120087,1730406648204,-238.34804,0.000365,14]
[341120088,1730406648214,-180.8213,0.000365,14]
[341120089,1730406648223,-180.8213,0.000365,14]
[341120090,1730406648232,-151.0,0.000365,14]
[341120091,1730406648241,-151.0,0.000365,14]
[341120092,1730406648251,-151.0,0.000365,14]
[341120093,1730406648261,-151.0,0.000365,14]
[341120094,1730406648270,-185.273363,0.000365,14]
[341120095,1730406648280,-185.273363,0.000365,14]
[341120096,1730406648292,-500.0,0.00036528,30]
[341120097,1730406648301,-500.0,0.00036528,30]
[341120098,1730406648311,-500.0,0.00036528,30]
[341120099,1730406648321,-500.0,0.00036528,30]
[341120100,1730406648330,-500.0,0.00036528,30]
[341120101,1730406648340,-500.0,0.00036528,30]
[341120102,1730406648430,-500.0,0.00036528,30]
[341120103,1730406648441,-500.0,0.00036528,30]
[341120104,1730406648451,-500.0,0.00036528,30]
[341120105,1730406648460,-500.86409177,0.00036568,2]
[341120106,1730406648469,-155.80516672,0.00036571,55]
[341120107,1730406648479,-999.0,0.00036575,120]
[341120108,1730406648488,-2508.56,0.00036632,120]
[341120109,1730406648498,-153.0,0.00036685,2]
[341120110,1730406648507,-623.75486662,0.00036707,5]
[341120111,1730406648516,-500.0,0.00036707,5]
[341120112,1730406648525,-500.0,0.00036707,5]
[341120113,1730406648537,-1000.0,0.00036712,120]
[341120114,1730406648549,-8690.05544454,0.00036717,56]
[341120115,1730406648558,-5000.0,0.00036717,55]
[341120116,1730406648567,-5000.0,0.00036717,58]
[341120117,1730406648576,-5000.0,0.00036717,55]
[341120118,1730406648587,-5000.0,0.00036717,59]
[341120119,1730406648597,-258.300136,0.00036718,14]
[341120120,1730406648606,-258.300136,0.00036718,14]
[341120121,1730406648618,-151.0,0.00036718,14]
[341120122,1730406648627,-227.017522,0.00036718,14]
[341120123,1730406648636,-227.017522,0.00036718,14]
[341120124,1730406648646,-151.0,0.00036718,2]
[341120125,1730406648655,-157.42157,0.00036718,14]
[341120126,1730406648664,-157.42157,0.00036718,14]
[341120127,1730406648674,-151.0,0.00036718,14]
[341120128,1730406648684,-151.0,0.00036718,14]
[341120129,1730406648693,-263.929002,0.00036718,14]
[341120130,1730406648704,-151.0,0.00036718,14]
[341120131,1730406648713,-151.0,0.00036718,5]
[341120132,1730406648724,-151.0,0.00036718,14]
[341120133,1730406648733,-151.0,0.00036718,14]
[341120134,1730406648744,-151.0,0.00036718,14]
[341120135,1730406648753,-1069.666247,0.00036718,14]
[341120136,1730406648763,-1069.666247,0.00036718,14]
[341120137,1730406648772,-151.0,0.00036718,14]
[341120138,1730406648782,-214.58781,0.00036718,14]
[341120139,1730406648793,-734.950032,0.00036718,14]
[341120140,1730406648802,-734.950032,0.00036718,14]
[341120141,1730406648811,-188.494296,0.00036718,14]
[341120142,1730406648821,-188.494296,0.00036718,14]
[341120143,1730406648830,-216.661834,0.00036718,14]
[341120144,1730406648839,-216.661834,0.00036718,14]
[341120145,1730406648849,-5039.46016907,0.00036729,60]
[341120146,1730406648858,-1000.0,0.000368,30]
[341120147,1730406648867,-295.898781,0.00036806,14]
[341120148,1730406648877,-295.898781,0.00036806,14]
[341120149,1730406648886,-238.34804,0.00036806,14]
[341120150,1730406648896,-180.8213,0.00036806,14]
[341120151,1730406648905,-180.8213,0.00036806,14]
[341120152,1730406648914,-151.0,0.00036806,14]
[341120153,1730406648924,-151.0,0.00036806,14]
[341120154,1730406648933,-151.0,0.00036806,14]
[341120155,1730406648942,-151.0,0.00036806,14]
[341120156,1730406648951,-185.273363,0.00036806,14]
[341120157,1730406648960,-185.273363,0.00036806,14]
[341120158,1730406648970,-151.0,0.000369,14]
[341120159,1730406648979,-227.017522,0.000369,14]
[341120160,1730406648988,-227.017522,0.000369,14]
[341120161,1730406648997,-151.0,0.000369,2]
[341120162,1730406649006,-157.42157,0.000369,14]
[341120163,1730406649017,-157.42157,0.000369,14]
[341120164,1730406649028,-151.0,0.000369,14]
[341120165,1730406649041,-151.0,0.000369,14]
[341120166,1730406649051,-495.23370282,0.000369,2]
[341120167,1730406649061,-12763.06805456,0.000369,120]
[341120174,1730407085916,157.646979,0.00013973,2]
[341120179,1730407377142,1000.0,0.00033573,30]
[341120181,1730407402359,1000.0,0.00033573,30]
[341120182,1730407415297,1000.0,0.00033573,30]
[341120184,1730407446259,1000.0,0.00033573,30]
[341120186,1730407460217,1000.0,0.00033573,30]
[341120216,1730407595419,168.399032,0.00013973,2]
[341120218,1730407625169,973.05,0.00033573,30]
[341120225,1730407714170,1000.0,0.00033573,30]
[341120226,1730407728242,1000.0,0.00033573,30]
[341120229,1730407746428,1000.0,0.00033573,30]
[341120235,1730407759033,1000.0,0.00033573,30]
[341120274,1730407776198,1000.0,0.00033573,30]
[341120325,1730407832299,-700.05057052,0.00025,3]
[341120327,1730407832310,-81.74057584,0.00025156,2]
[341120330,1730407832327,-75.90640316,0.00025156,2]
[341120332,1730407832336,-169.3276092,0.00025732,2]
[341120334,1730407832346,-300.0,0.00026284,2]
[341120336,1730407832355,-300.0,0.00026284,2]
[341120338,1730407832367,-1950.44598764,0.00026285,2]
[341120342,1730407832393,-3638.03356978,0.00026285,2]
[341120344,1730407832410,-501.36,0.00026285,2]
[341120347,1730407832425,-3273.23722304,0.00026285,2]
[341120382,1730407838552,-15536.92321954,0.00026285,2]
[341120383,1730407838563,-1212.2637571,0.00026533,2]
[341120384,1730407838575,-175.722848,0.00026821,2]
[341120385,1730407838586,-175.722848,0.00026844,2]
[341120386,1730407838596,-175.722848,0.00026866,2]
[341120387,1730407838606,-175.722848,0.00026888,2]
[341120388,1730407838618,-300.115389,0.00026899,2]
[341120389,1730407838629,-741.42125025,0.000269,2]
[341120390,1730407838639,-175.722848,0.00026911,2]
[341120391,1730407838650,-175.722848,0.00026933,2]
[341120392,1730407838663,-175.722848,0.00026955,2]
[341120393,1730407838672,-749.57313726,0.00027,2]
[341120394,1730407838683,-500.0,0.00027,30]
[341120395,1730407838694,-500.0,0.00027,30]
[341120396,1730407838703,-157.80967,0.00027348,2]
[341120397,1730407838715,-300.115389,0.00027583,2]
[341120398,1730407838725,-300.115389,0.00028268,2]
[341120399,1730407838735,-741.42125019,0.00028514,2]
[341120400,1730407838744,-10388.86,0.00029326,2]
[341120401,1730407838755,-565.24320789,0.00029326,2]
[341120402,1730407838766,-163.8895,0.0003,2]
[341120403,1730407838776,-741.42125019,0.00030129,2]
[341120404,1730407838787,-500.0,0.0003154,2]
[341120405,1730407838797,-182.69114483,0.0003154,2]
[341120406,1730407838808,-500.0,0.0003154,2]
[341120407,1730407838819,-500.0,0.0003154,2]
[341120408,1730407838830,-569.45764943,0.0003154,2]
[341120409,1730407838842,-500.0,0.0003154,2]
[341120410,1730407838852,-500.0,0.0003154,2]
[341120411,1730407838863,-500.0,0.0003154,2]
[341120412,1730407838874,-558.65145359,0.0003154,2]
[341120413,1730407838884,-500.0,0.0003154,2]
[341120414,1730407838896,-500.0,0.0003154,2]
[341120415,1730407838910,-500.0,0.0003154,2]
[341120416,1730407838925,-500.0,0.0003154,2]
[341120417,1730407838937,-500.0,0.0003154,2]
[341120418,1730407838948,-500.0,0.0003154,2]
[341120419,1730407838959,-500.0,0.00031541,2]
[341120420,1730407838969,-741.42125019,0.00031743,2]
[341120421,1730407838980,-500.0,0.0003266,5]
[341120422,1730407838990,-500.0,0.0003266,5]
[341120423,1730407839000,-500.0,0.0003266,2]
[341120424,1730407839011,-700.05057052,0.00033,3]
[341120425,1730407839021,-163.8895,0.00033076,2]
[341120426,1730407839032,-741.42125019,0.00033357,2]
[341120427,1730407839042,-700.05057052,0.000335,3]
[341120428,1730407839053,-10388.86,0.00033575,2]
[341120429,1730407839063,-700.05057052,0.000336,3]
[341120430,1730407839074,-700.05057052,0.000337,3]
[341120431,1730407839085,-700.05057052,0.000338,3]
[341120432,1730407839096,-700.05057052,0.000339,3]
[341120433,1730407839107,-10388.86,0.00034399,2]
[341120434,1730407839118,-1751.55,0.000344,2]
[341120435,1730407839128,-300.0,0.000344,17]
[341120436,1730407839137,-669.7,0.000344,31]
[341120437,1730407839147,-669.7,0.000344,31]
[341120438,1730407839162,-669.7,0.000344,31]
[341120439,1730407839173,-669.7,0.000344,31]
[341120440,1730407839184,-669.7,0.000344,31]
[341120441,1730407839195,-669.7,0.000344,31]
[341120442,1730407839205,-669.7,0.000344,31]
[341120443,1730407839216,-669.7,0.000344,31]
[341120444,1730407839227,-669.7,0.000344,31]
[341120445,1730407839237,-669.7,0.000344,31]
[341120446,1730407839247,-669.7,0.000344,31]
[341120447,1730407839256,-669.7,0.000344,31]
[341120448,1730407839267,-158.93371465,0.00034487,8]
[341120449,1730407839277,-500.0,0.00034679,2]
[341120450,1730407839286,-741.42125019,0.00034971,2]
[341120451,1730407839297,-500.0,0.00034999,2]
[341120452,1730407839308,-153.0,0.00035031,2]
[341120453,1730407839318,-153.0,0.00035031,2]
[341120454,1730407839331,-160.79384877,0.0003551,2]
[341120455,1730407839342,-10388.86,0.00035598,2]
[341120456,1730407839352,-179.395,0.0003561,2]
[341120457,1730407839363,-160.0,0.00035616,5]
[341120458,1730407839374,-374.93538713,0.00035698,15]
[341120459,1730407839384,-500.0,0.00035698,15]
[341120460,1730407839396,-170.60684991,0.00035698,15]
[341120461,1730407839409,-169.42479493,0.00035698,15]
[341120462,1730407839422,-999.0,0.00035699,120]
[341120463,1730407839433,-10388.86,0.00035699,120]
[341120464,1730407839443,-669.7,0.000357,31]
[341120465,1730407839454,-669.7,0.000357,31]
[341120466,1730407839464,-669.7,0.000357,31]
[341120467,1730407839474,-669.7,0.000357,31]
[341120468,1730407839484,-669.7,0.000357,31]
[341120469,1730407839495,-669.7,0.000357,31]
[341120470,1730407839507,-669.7,0.000357,31]
[341120471,1730407839638,-669.7,0.000357,31]
[341120472,1730407839648,-669.7,0.000357,31]
[341120473,1730407839659,-669.7,0.000357,31]
[341120474,1730407839668,-669.7,0.000357,31]
[341120475,1730407839677,-669.7,0.000357,31]
[341120476,1730407839686,-669.7,0.000357,31]
[341120477,1730407839695,-669.7,0.000357,31]
[341120478,1730407839705,-669.7,0.000357,31]
[341120479,1730407839715,-669.7,0.000357,31]
[341120480,1730407839726,-669.7,0.000357,31]
[341120481,1730407839736,-669.7,0.000357,31]
[341120482,1730407839746,-669.7,0.000357,31]
[341120483,1730407839755,-669.7,0.000357,31]
[341120484,1730407839765,-669.7,0.000357,31]
[341120485,1730407839775,-669.7,0.000357,31]
[341120486,1730407839784,-669.7,0.000357,31]
[341120488,1730407839794,-669.7,0.000357,31]
[341120489,1730407839803,-300.0,0.000359,18]
[341120490,1730407839813,-195.86811126,0.00035982,2]
[341120491,1730407839823,-157.646979,0.00036339,2]
[341120492,1730407839832,-153.0,0.00036356,2]
[341120493,1730407839843,-153.0,0.00036356,2]
[341120495,1730407839853,-153.0,0.00036356,2]
[341120496,1730407839863,-153.0,0.00036356,2]
[341120498,1730407839872,-10388.86,0.00036437,120]
[341120500,1730407839882,-1000.0,0.00036481,120]
[341120501,1730407839891,-10388.86,0.00036572,120]
[341120502,1730407839901,-500.0,0.00036573,30]
[341120504,1730407839913,-500.0,0.00036573,30]
[341120506,1730407839926,-500.0,0.00036573,30]
[341120507,1730407839935,-500.0,0.00036573,30]
[341120510,1730407839946,-741.42125019,0.00036586,2]
[341120511,1730407839959,-6785.28633546,0.00036649,2]
[341120512,1730407839968,-999.0,0.00036658,120]
[341120513,1730407839977,-1000.0,0.00036755,120]
[341120514,1730407839987,-10388.86,0.00036897,120]
[341120515,1730407840001,-1000.0,0.00036898,2]
[341120516,1730407840012,-2508.737202,0.00036906,120]
[341120517,1730407840022,-151.0,0.00036986,120]
[341120518,1730407840033,-10388.86,0.00036997,120]
[341120519,1730407840042,-151.0,0.00036998,14]
[341120520,1730407840051,-151.0,0.00036998,14]
[341120521,1730407840060,-151.0,0.00036998,14]
[341120522,1730407840069,-514.465022,0.00036998,14]
[341120523,1730407840079,-514.465022,0.00036998,14]
[341120524,1730407840088,-151.0,0.00036998,14]
[341120525,1730407840098,-794.066373,0.00036998,14]
[341120526,1730407840107,-794.066373,0.00036998,14]
[341120527,1730407840116,-151.0,0.00036998,14]
[341120528,1730407840125,-249.23208,0.00036998,14]
[341120529,1730407840135,-249.23208,0.00036998,14]
[341120530,1730407840144,-151.0,0.00036998,14]
[341120531,1730407840153,-151.0,0.00036998,14]
[341120532,1730407840164,-235.095938,0.00036998,14]
[341120533,1730407840173,-235.095938,0.00036998,14]
[341120534,1730407840182,-584.572745,0.00036998,14]
[341120535,1730407840192,-584.572745,0.00036998,14]
[341120536,1730407840201,-151.0,0.00036998,14]
[341120537,1730407840210,-151.0,0.00036998,14]
[341120538,1730407840220,-151.0,0.00036998,14]
[341120539,1730407840229,-151.0,0.00036998,14]
[341120540,1730407840239,-151.0,0.00036998,14]
[341120541,1730407840248,-151.0,0.00036998,14]
[341120542,1730407840257,-151.0,0.00036998,14]
[341120543,1730407840266,-151.0,0.00036998,14]
[341120544,1730407840275,-151.0,0.00036998,14]
[341120545,1730407840285,-151.0,0.00036998,2]
[341120546,1730407840294,-151.0,0.00036998,14]
[341120547,1730407840303,-151.0,0.00036998,14]
[341120548,1730407840312,-253.722052,0.00036998,14]
[341120549,1730407840321,-151.0,0.00036998,14]
[341120550,1730407840330,-151.0,0.00036998,14]
[341120551,1730407840340,-151.0,0.00036998,14]
[341120552,1730407840349,-275.852341,0.00036998,14]
[341120553,1730407840358,-310.802882,0.00036998,14]
[341120554,1730407840368,-310.802882,0.00036998,14]
[341120555,1730407840377,-185.71721,0.00036999,14]
[341120556,1730407840386,-151.0,0.00036999,14]
[341120557,1730407840395,-151.0,0.00036999,14]
[341120558,1730407840405,-151.0,0.00036999,14]
[341120559,1730407840418,-151.0,0.00036999,14]
[341120560,1730407840428,-151.0,0.00036999,14]
[341120561,1730407840437,-267.249493,0.00036999,14]
[341120562,1730407840447,-151.0,0.00036999,14]
[341120563,1730407840457,-151.0,0.00036999,14]
[341120564,1730407840467,-151.0,0.00036999,14]
[341120565,1730407840476,-151.0,0.00036999,14]
[341120566,1730407840486,-151.0,0.00036999,14]
[341120567,1730407840495,-151.0,0.00036999,14]
[341120568,1730407840505,-151.0,0.00036999,14]
[341120569,1730407840516,-151.0,0.00036999,14]
[341120570,1730407840525,-151.0,0.00036999,14]
[341120571,1730407840535,-151.489262,0.00036999,14]
[341120572,1730407840545,-151.0,0.00036999,14]
[341120573,1730407840554,-151.0,0.00036999,14]
[341120574,1730407840564,-151.0,0.00036999,14]
[341120575,1730407840574,-323.433633,0.00036999,14]
[341120576,1730407840583,-323.433633,0.00036999,14]
[341120577,1730407840593,-202.595834,0.00036999,14]
[341120578,1730407840602,-202.595834,0.00036999,14]
[341120579,1730407840613,-151.0,0.00036999,14]
[341120580,1730407840624,-151.0,0.00036999,14]
[341120581,1730407840634,-323.433633,0.00036999,14]
[341120582,1730407840644,-323.433633,0.00036999,14]
[341120583,1730407840654,-202.595834,0.00036999,14]
[341120584,1730407840667,-202.595834,0.00036999,14]
[341120585,1730407840677,-151.0,0.00036999,14]
[341120586,1730407840688,-151.0,0.00036999,14]
[341120587,1730407840698,-180.810095,0.00036999,14]
[341120588,1730407840707,-180.810095,0.00036999,14]
[341120589,1730407840716,-180.810095,0.00036999,14]
[341120590,1730407840726,-180.810095,0.00036999,14]
[341120591,1730407840737,-151.0,0.00036999,14]
[341120592,1730407840747,-151.0,0.00036999,14]
[341120593,1730407840756,-151.0,0.00036999,14]
[341120594,1730407840765,-151.0,0.00036999,14]
[341120595,1730407840775,-151.0,0.00036999,14]
[341120596,1730407840784,-151.0,0.00036999,14]
[341120597,1730407840794,-514.465022,0.00036999,14]
[341120598,1730407840804,-514.465022,0.00036999,14]
[341120599,1730407840813,-290.224693,0.00036999,14]